Cogmind - Beta 15 @@@ ROGUE MODE // 2025.09.28 @ 21:10:31 Player: AbstractArtist Result: Destroyed by as-76641 with Assembled Rifle Performance ------------- Evolutions (1) 500 Regions Visited (5) 1000 Robots Destroyed (16) 80 Value Destroyed (413) 413 Prototype IDs (0) 0 Alien Tech Used (0) 0 Bonus (-57) -57 TOTAL SCORE: 1936 Bonus ------- Friendly Fire -57 Cogmind --------- Core Integrity 0/400 Matter 150/300 Energy 48/100 System Corruption 2% Temperature Cool (0) Movement Rolling (320) Ox16 Location -9/Exiles Parts ------- > --- POWER (1) -------- (None) > --- PROPULSION (3) --- Wheel > --- UTILITY (2) ------ Huge Storage Unit Huge Storage Unit > --- WEAPON (3) ------- Assault Rifle Mining Laser > --- INVENTORY (25) --- Aluminum Leg Aluminum Leg Improved Hover Unit Improved Hover Unit Structural Scanner Terrain Scanner Mining Laser Peak State ------------ > --- POWER ------------ Light Ion Engine > --- PROPULSION ------- Improved Aluminum Leg Improved Aluminum Leg Improved Aluminum Leg > --- UTILITY ---------- Huge Storage Unit Huge Storage Unit > --- WEAPON ----------- Assault Rifle Light Assault Rifle Rocket Launcher > --- INVENTORY -------- Nuclear Core Light Fission Core Aluminum Leg Aluminum Leg Wheel Improved Hover Unit Improved Hover Unit Structural Scanner Terrain Scanner Assault Rifle Mining Laser Mining Laser Mining Laser [Rating: 15] Favorites ----------- Power Light Ion Engine Engine Light Ion Engine Power Core Light Nuclear Core Propulsion Improved Aluminum Leg Leg Improved Aluminum Leg Wheel Wheel Utility Huge Storage Unit Storage Huge Storage Unit Weapon Assault Rifle Ballistic Gun Assault Rifle Launcher Rocket Launcher Special Weapon Mining Laser Build | -11 -10 -10 -9 -9 -9 ------- Run | Yrd Mat Min Mat Min Exi Slots Evolved 2 | . . . 2 . . Power . | . . . . . . Propulsion 1 | . . . 1 . . Utility . | . . . . . . Weapon 1 | . . . 1 . . Parts Attached 17 | 5 2 3 4 . 3 Power 2 | 1 . 1 . . . Engine 1 | 1 . . . . . Core 1 | . . 1 . . . Reactor . | . . . . . . Propulsion 6 | 2 . . 3 . 1 Treads . | . . . . . . Leg 3 | . . . 3 . . Wheel 3 | 2 . . . . 1 Hover . | . . . . . . Flight . | . . . . . . Utility 2 | . 2 . . . . Device . | . . . . . . Storage 2 | . 2 . . . . Processor . | . . . . . . Hackware . | . . . . . . Protection . | . . . . . . Artifact . | . . . . . . Weapon 7 | 2 . 2 1 . 2 Energy Gun . | . . . . . . Energy Cannon . | . . . . . . Ballistic Gun 3 | 2 . . 1 . . Ballistic Cannon . | . . . . . . Launcher 2 | . . 2 . . . Special Weapon 2 | . . . . . 2 Impact Weapon . | . . . . . . Slashing Weapon . | . . . . . . Piercing Weapon . | . . . . . . Special Melee Weapon . | . . . . . . Unidentified Prototypes . | . . . . . . Parts Lost 12 | . . . 4 . 8 Power 2 | . . . 1 . 1 Propulsion 5 | . . . 2 . 3 Utility . | . . . . . . Weapon 5 | . . . 1 . 4 Highest Loss Streak 8 | . . . 4 . 8 To Critical Strikes . | . . . . . . Average Backups 9 | 2 8 10 7 9 13 Power 1 | . . . 1 . 2 Propulsion 5 | 1 6 7 4 4 4 Utility . | . . . . . 2 Weapon 2 | . 2 3 1 4 3 Tool/Special . | . . . . . . Unused Backups 10 | . . . . . 10 Power 3 | . . . . . 3 Propulsion 4 | . . . . . 4 Utility 2 | . . . . . 2 Weapon 1 | . . . . . 1 Tool/Special . | . . . . . . Average Slot Usage (%) 95 | . 98 100 85 97 98 Engine 7 | . 14 2 . 9 10 Core 2 | . . 11 3 . . Leg 20 | . . . 22 33 32 Wheel 9 | . 28 28 4 . . Storage 23 | . 26 28 22 22 22 Ballistic Gun 20 | . 28 5 18 22 21 Launcher 10 | . . 22 13 11 10 Peak Build Rating 15 | 5 8 12 13 14 15 Average Rating 11 | 3 7 11 12 13 14 On Entrance 8 | . 5 8 12 13 14 Naked Turns . | . . . . . . Heaviest Build 174 | 7 167 173 174 170 170 Greatest Support 39 | 20 20 20 39 39 39 Greatest Overweight (x) 57 | . 8 8 57 4 16 Average Overweight (x) 5 | . 7 8 5 4 4 Largest Inventory Capacity 25 | 5 25 25 25 25 25 Average Capacity 23 | 5 24 25 25 25 25 Most Carried 15 | 5 10 11 10 11 15 Average Carried 10 | 2 8 10 7 9 13 Final Capacity 25 | 5 25 25 25 25 25 Final Carried 11 | 3 10 11 9 11 7 Class Distribution -------------------- 63% | Gunner 36% | Mutant Dominant Class ---------------- Mutant | -10/Materials Mutant | -10/Mines Gunner | -9/Materials Gunner | -9/Mines Gunner | -9/Exiles Resources | -11 -10 -10 -9 -9 -9 ----------- Run | Yrd Mat Min Mat Min Exi Matter Collected 564 | 280 20 94 137 13 20 Remotely . | . . . . . . Salvage Created 340 | 31 . 103 153 13 40 Parts 25 | . . 6 13 3 3 Haulers Intercepted . | . . . . . . Recyclers Shooed . | . . . . . . Parts Field Recycled . | . . . . . . Retrieved Matter . | . . . . . . Parts Self-Destructed . | . . . . . . Prevented . | . . . . . . Kills | -11 -10 -10 -9 -9 -9 ------- Run | Yrd Mat Min Mat Min Exi Combat Hostiles Destroyed 7 | 1 . 2 4 . . Guns 4 | 1 . 2 1 . . AOE 3 | . . . 3 . . Classes Destroyed 7 | 1 . . 4 1 1 Worker 1 | . . . . 1 . Builder 3 | . . . 2 1 . Operator 1 | . . . 1 . . Watcher 1 | . . . 1 . . Grunt 6 | 1 . 2 3 . . Sentry 1 | . . . 1 . . Zionite 3 | . . . . . 3 Best Kill Streak 5 | 1 . 2 5 1 1 Combat Bots Only 3 | 1 . 2 3 . . Max Kills in Single Turn 5 | 1 . 1 5 1 1 Gunslinging . | . . . . . . Exploded 3 | . . . 3 . . Melee . | . . . . . . Uniques/NPCs Destroyed . | . . . . . . Combat | -11 -10 -10 -9 -9 -9 -------- Run | Yrd Mat Min Mat Min Exi Hostile Shots Fired 148 | 10 . 11 48 . 79 Missed 41 | 3 . 3 18 . 17 Hits 107 | 7 . 8 30 . 62 Melee 3 | . . . . . 3 Projectile 104 | 7 . 8 30 . 59 Critical Strikes 5 | . . 1 . . 4 Damage Taken 1660 | 77 93 95 534 13 848 Core 468 | 12 31 24 81 . 320 Absorbed by Shields . | . . . . . . Core Remaining (%) 84 | 95 . 73 . . . Volleys Fired 39 | 10 5 6 8 2 8 Largest 3 | 1 2 2 3 3 3 Hottest 86 | 20 40 40 86 73 73 Shots Fired 78 | 10 10 12 24 6 16 Gun 59 | 10 10 12 11 4 12 Cannon . | . . . . . . Launcher 19 | . . . 13 2 4 Special . | . . . . . . Kinetic 59 | 10 10 12 11 4 12 Thermal . | . . . . . . Explosive 19 | . . . 13 2 4 Electromagnetic . | . . . . . . Robot Hit Streak 5 | 5 . 3 4 . 2 Robot Miss Streak 3 | 1 2 1 3 . 1 Penetration Max . | . . . . . . Secondary Targets 1 | . . 1 . . . Max Gunslinging Chain 1 | . . 1 . . . Shots Hit Robots 23 | 8 . 7 6 . 2 Core Hits 27 | 2 . 5 12 3 5 Critical Kills . | . . . . . . Critical Parts Destroyed 1 | . . . 1 . . Critical Strikes 1 | . . . 1 . . Destroy 1 | . . . 1 . . Melee Attacks . | . . . . . . Impact . | . . . . . . Slashing . | . . . . . . Piercing . | . . . . . . Sneak Attacks . | . . . . . . Combat Hostiles . | . . . . . . Follow-up Attacks . | . . . . . . Damage Inflicted 804 | 102 8 85 447 84 78 Guns 231 | 102 . 85 21 . 23 Cannons . | . . . . . . Explosions 540 | . . . 426 59 55 Melee . | . . . . . . Ramming 33 | . 8 . . 25 . Kinetic 231 | 102 . 85 21 . 23 Thermal . | . . . . . . Explosive 540 | . . . 426 59 55 Electromagnetic . | . . . . . . Impact . | . . . . . . Slashing . | . . . . . . Piercing . | . . . . . . Highest Corruption 2 | . . . . . 2 Average Corruption 1 | . . . . . 1 Corruption Purged . | . . . . . . Corruption Blocked . | . . . . . . Effects 1 | . . . . . 1 Matter Fused 1 | . . . . . 1 Overload Shots . | . . . . . . Overflow Damage 6 | . . . 6 . . Projectiles . | . . . . . . Explosions 6 | . . . 6 . . Melee . | . . . . . . Knockbacks . | . . . . . . Impact . | . . . . . . Kinetic . | . . . . . . Secondary . | . . . . . . Self-Inflicted Damage 150 | . 22 . 115 13 . Shots 8 | . 1 . 6 1 . Rammed 1 | . 1 . . . . Targets Rammed 2 | . 1 . . 1 . Kicked 1 | . . . . 1 . Crushed . | . . . . . . Highest Temperature 51 | . . 26 51 . 29 Average Temperature 17 | . . 17 19 . 15 Received Heat Transfer 324 | 42 . 72 165 . 45 Siege Activations . | . . . . . . Martial Activations . | . . . . . . Shielding Activations . | . . . . . . Robots Disrupted . | . . . . . . Combat Hostiles . | . . . . . . Robots Corrupted . | . . . . . . Combat Hostiles . | . . . . . . Parts Fried . | . . . . . . Impact Corruptions . | . . . . . . Robots Melted . | . . . . . . Combat Hostiles . | . . . . . . Parts Melted . | . . . . . . Heat Transferred . | . . . . . . Parts Sabotaged . | . . . . . . Parts Stolen . | . . . . . . Parts Stripped . | . . . . . . Power Chain Reactions . | . . . . . . Alert | -11 -10 -10 -9 -9 -9 ------- Run | Yrd Mat Min Mat Min Exi Maximum Alert Level . | . . . . . . Low Security (%) 100 | 100 100 100 100 100 . Level 1 . | . . . . . . Level 2 . | . . . . . . Level 3 . | . . . . . . Level 4 . | . . . . . . Level 5 . | . . . . . . High Security . | . . . . . . Max Security . | . . . . . . Peak Influence 93 | 20 46 63 93 73 . Initial 13 | . 6 13 . . . Average 18 | 1 4 16 30 30 . Influence Increases 408 | 20 60 50 200 78 . Destroy 0b10 Robot/C 140 | 20 . 40 80 . . Destroy 0b10 Robot/NC 30 | . . . 20 10 . Destroy Leader 32 | . . 10 22 . . Successful Hack 14 | . 14 . . . . Disable Machine 105 | . 30 . 15 60 . Destroy Structure 87 | . 16 . 63 8 . Influence Decreases 408 | 10 34 86 200 78 . Entered New Map 27 | . 4 23 . . . Time Decay 344 | 10 30 63 163 78 . Lost Part 37 | . . . 37 . . Squads Dispatched . | . . . . . . Investigation . | . . . . . . Extermination . | . . . . . . Reinforcement . | . . . . . . Assault . | . . . . . . Garrison . | . . . . . . Intercept . | . . . . . . Searches Triggered . | . . . . . . Construction Impeded . | . . . . . . Haulers Reinforced . | . . . . . . Active Scanning Responses . | . . . . . . Cargo Convoy Interrupts . | . . . . . . Stealth | -11 -10 -10 -9 -9 -9 --------- Run | Yrd Mat Min Mat Min Exi Distress Signals 1 | . . . 1 . . Communications Jammed . | . . . . . . Distress Signals . | . . . . . . Times Spotted 25 | 1 1 2 9 . 12 Peak Tracking Total 14 | 1 1 2 4 . 14 Tactical Retreats 1 | . . . . . 1 Traps | -11 -10 -10 -9 -9 -9 ------- Run | Yrd Mat Min Mat Min Exi Traps Triggered 2 | . 2 . . . . Indirectly . | . . . . . . Trap Hack Attempts . | . . . . . . Triggered . | . . . . . . Disarmed . | . . . . . . Reprogrammed . | . . . . . . Reused . | . . . . . . Traps Extracted . | . . . . . . Installed . | . . . . . . Triggered . | . . . . . . Machines | -11 -10 -10 -9 -9 -9 ---------- Run | Yrd Mat Min Mat Min Exi Machines Disabled 12 | . 2 . 1 4 5 Max in Single Turn 4 | . 2 . 1 2 4 Machines Repaired . | . . . . . . Machines Dismantled . | . . . . . . Machines Sabotaged . | . . . . . . Overloaded Fab Kills . | . . . . . . Hacking | -11 -10 -10 -9 -9 -9 --------- Run | Yrd Mat Min Mat Min Exi Machines Accessed 4 | . 3 . 1 . . Terminals 4 | . 3 . 1 . . Fabricators . | . . . . . . Repair Stations . | . . . . . . Recycling Units . | . . . . . . Scanalyzers . | . . . . . . Garrison Access . | . . . . . . Total Hacks 10 | . 7 . 3 . . Successful 5 | . 4 . 1 . . Failed 5 | . 3 . 2 . . Catastrophic . | . . . . . . Database Lockouts . | . . . . . . Manual 2 | . 2 . . . . Terminals 10 | . 7 . 3 . . Fabricators . | . . . . . . Repair Stations . | . . . . . . Recycling Units . | . . . . . . Scanalyzers . | . . . . . . Garrison Access . | . . . . . . Terminal Hacks 5 | . 4 . 1 . . Record 4 | . 3 . 1 . . Zone Layout 1 | . 1 . . . . Fabricator Hacks . | . . . . . . Repair Station Hacks . | . . . . . . Recycling Unit Hacks . | . . . . . . Scanalyzer . | . . . . . . Garrison Access Hacks . | . . . . . . Unauthorized Hacks . | . . . . . . Terminals . | . . . . . . Fabricators . | . . . . . . Repair Stations . | . . . . . . Recycling Units . | . . . . . . Scanalyzers . | . . . . . . Garrison Access . | . . . . . . Data Cores Recovered 1 | . . . 1 . . Used . | . . . . . . Hacking Detections 4 | . 3 . 1 . . Full Trace Events 3 | . 2 . 1 . . Feedback Events . | . . . . . . Feedback Blocked . | . . . . . . Robot Schematics Acquired . | . . . . . . Robots Built . | . . . . . . Authchips . | . . . . . . Time . | . . . . . . Total Robot Build Rating . | . . . . . . Part Schematics Acquired . | . . . . . . Parts Built . | . . . . . . Authchips . | . . . . . . Time . | . . . . . . Total Part Build Rating . | . . . . . . Parts Repaired . | . . . . . . Time . | . . . . . . Parts Recycled . | . . . . . . Recycled Matter . | . . . . . . Retrieved Matter . | . . . . . . Retrieved Components . | . . . . . . Parts Scanalyzed . | . . . . . . Part Schematics Acquired . | . . . . . . Parts Damaged . | . . . . . . Bothacking | -11 -10 -10 -9 -9 -9 ------------ Run | Yrd Mat Min Mat Min Exi Used RIF Installer . | . . . . . . Robots Hacked . | . . . . . . Non-combat . | . . . . . . Combat . | . . . . . . Robot Hacks Applied . | . . . . . . Relay Couplers Released . | . . . . . . Fabnet Peak Effective % . | . . . . . . Robots Rewired . | . . . . . . Allies Hacked . | . . . . . . Hacks Repelled . | . . . . . . Allies | -11 -10 -10 -9 -9 -9 -------- Run | Yrd Mat Min Mat Min Exi Total Allies . | . . . . . . Largest Group . | . . . . . . Highest-Rated Group . | . . . . . . Highest-Rated Ally . | . . . . . . Total Orders . | . . . . . . Ally Attacks . | . . . . . . Total Damage . | . . . . . . Kills . | . . . . . . Allies Corrupted . | . . . . . . Allies Melted . | . . . . . . Intel | -11 -10 -10 -9 -9 -9 ------- Run | Yrd Mat Min Mat Min Exi Active Infowar (turns) . | . . . . . . Robot Analysis Total . | . . . . . . Derelict Logs Recovered 2 | . . 2 . . . Drone Launches . | . . . . . . Drone Recoveries . | . . . . . . Exploration | -11 -10 -10 -9 -9 -9 ------------- Run | Yrd Mat Min Mat Min Exi Turns Passed 2024 | 105 359 246 386 203 725 Spaces Moved 707 | 100 174 112 99 48 174 Core 29 | 28 . . 1 . . Treads . | . . . . . . Legs 287 | . . . 66 48 173 Wheels 391 | 72 174 112 32 . 1 Hover . | . . . . . . Flight . | . . . . . . Fastest Speed 50 | 50 80 200 200 400 320 Average Speed 264 | 71 190 200 360 400 400 Slowest Speed 2900 | 80 200 200 2900 400 540 Overloaded Moves . | . . . . . . Propulsion Burnouts . | . . . . . . Robots Hopped . | . . . . . . Potential Cave-ins . | . . . . . . Cave-ins Triggered . | . . . . . . Exploration Rate (%) 21 | 6 20 34 11 9 49 Regions Visited 5 Branch Regions 3 Pre-discovered Areas . | . . . . . . Known Exits Taken . | . . . . . . Unknown Exits Taken 5 | 1 1 1 1 1 . Scrap Searched . | . . . . . . Spaces Dug . | . . . . . . Terrain Destroyed 142 | . 27 . 90 10 15 Melee . | . . . . . . Projectile . | . . . . . . AOE 142 | . 27 . 90 10 15 Terrain Rammed . | . . . . . . Walls Destroyed . | . . . . . . Machines Disabled . | . . . . . . Actions | -11 -10 -10 -9 -9 -9 --------- Run | Yrd Mat Min Mat Min Exi Total 798 | 123 191 121 114 54 195 Wait 3 | 1 1 . . . 1 Move 702 | 99 173 111 98 47 174 Hop . | . . . . . . Pick Up 27 | 8 9 1 3 3 3 Fast Attach . | . . . . . . Attach 18 | 5 2 . 5 1 5 Detach 1 | . . . . . 1 Swap 3 | . . 3 . . . Drop 3 | . . . . . 3 Fire 39 | 10 5 6 8 2 8 Melee . | . . . . . . Ram 1 | . 1 . . . . Kick 1 | . . . . 1 . Crush . | . . . . . . Escape Stasis . | . . . . . . Rewire . | . . . . . . Trap . | . . . . . . Miscellaneous . | . . . . . . Route ------- -11/Scrapyard -10/Materials -10/Mines -9/Materials -9/Mines -9/Exiles (discovered 1 exit: [*Min]) History --------- Turn | Location | Event 2 | -11/Scrapyard | Met Revision 17 74 | -11/Scrapyard | Discovered new exit (range 8) 106 | -11/Scrapyard | Entered Materials 313 | -10/Materials | Build established: Mutant 370 | -10/Materials | Discovered new exit (range 7) 465 | -10/Materials | Entered Mines 547 | -10/Mines | Learned Materials trap positions 687 | -10/Mines | Discovered new exit (range 10) 693 | -10/Mines | Learned Materials terminal intel 711 | -10/Mines | Entered Materials 711 | -9/Materials | Evolved 2 slots: Propulsion x1, Weapon x1 712 | -9/Materials | Loaded intel: 28 trap records 713 | -9/Materials | Loaded intel: 12 terminal locations 852 | -9/Materials | Lost 4 parts (1p2n1w) 998 | -9/Materials | Discovered new exit (range 15) 1097 | -9/Materials | Entered Mines 1111 | -9/Mines | Build established: Gunner 1268 | -9/Mines | Deemed a non-threat by the Exiles lab entrance 1272 | -9/Mines | Discovered new exit (range 5) 1300 | -9/Mines | Entered Exiles 1409 | -9/Exiles | Discovered new exit (range 14) 1563 | -9/Exiles | Met 8R-AWN 1623 | -9/Exiles | Met EX-HEX 1775 | -9/Exiles | Met EX-DEC 1896 | -9/Exiles | Visited The Gauntlet 1988 | -9/Exiles | Attacked by the Exiles 2017 | -9/Exiles | Core integrity fell below 50% 2022 | -9/Exiles | Core integrity fell below 20% 2025 | -9/Exiles | Destroyed by as-76641 with Assembled Rifle Last Messages --------------- 02018_ GM-J5T overheating. 02019_ GM-J5T heat spikes uncontrollably. 02019_ GM-J5T overheating. 02020_ GM-J5T heat spikes uncontrollably. 02020_ GM-J5T overheating. 02021_ GM-J5T heat damages core (-2). 02021_ GM-J5T overheating. 02022_ EX-BIN: "I just want to science!" 02022_ GM-J5T overheating. 02023_ GM-J5T heat damages core (-4). 02023_ The unstable cave ceiling collapses. 02023_ GM-J5T overheating. 02023_ Mining Laser destroyed. 02023_ System corrupted by crushing effect (+1). 02023_ Knocked back. 02024_ System corrupted: Matter fused (-8). 02024_ GM-J5T overheating. 02025_ GM-J5T heat damages Broken Mak. Power Source. 02025_ GM-J5T overheating. Map ----- +----------------------------------------------------+ | ???????????????????#"""" ""## ##""" | | ???????????????????#"" ""#### ##### | | ???????????????????#" """"##??# #???? | | ???????????????????#""" """#???# #???? | | ???????????????????## ""##???! ???? | | ????????????????????#"" """##???#" ??? | | ????????????????????##""" ##????#" ??? | | ?????????????????????##"""" ##?????#!!""!"?? | | ??????????????????????### #???????######?? | | ????????????????????????##### ##??????????????? | | ????????????????????????????## #???????????????? | | ?????????????????????????????# #???????????????? | | ?????????????????????????????# #???????????????? | | ?????????????????????????????# #???????????????? | | ?????????????????????????????# #???????????????? | | ???????????????????"""???????# #???????????????? | | ???????????????????"""""?????# #???????????????? | | ???????????????????" ""?????# #???????????????? | | ???????????????????"" "?????# #???????????????? | | ???????????????????"" ?????#a #???????????????? | | ????????????????#####"""###### c #### ###????????? | | ??????????????""""""" """""aa c" "" ??""????? | | ?????????? """"""" c "" ""???? | | ????????? a * * ""???? | | ????????? aaa = " "???? | | ????????? z @ * """???? | | ????????? z "" " ""???? | | ????????? " """"" " """" ?""????? | | ???????????????#""###"""########""" # ????????? | | ???????????????????"" ??????"" ""# ????????? | | ??????????????????#""" ?????#"" """#???????????? | | ??????????????????#" "?????#"""""""#???????????? | | ??????????????????#"""""??????"" """"????????????? | | ???????????????????""""???????""""""?????????????? | | ????????????????????###????????###???????????????? | | ?????????????????????????????????????????????????? | | ?????????????????????????????????????????????????? | | ?????????????????????????????????????????????????? | | ?????????????????????????????????????????????????? | | | | | | | | | | | | | | | | | | | | | | | +----------------------------------------------------+ Best States ------------- Heat Dissipation 28 Energy Generation 14 Energy Capacity 160 Matter Stores 300 Matter Capacity 300 Sight Range 16 Terrain Scan Density 10 Evasion (%) 50 Item Schematics ----------------- None Robot Schematics ------------------ None Fabricated ------------ Nothing Repaired ---------- Nothing Alien Tech Used ----------------- None Achievements -------------- Tank Challenges ------------ None Game ------ Seed ArcsightVortexScreen Manual? 0 Play Time 00:26:49 Cumulative 14.2 hours Start 2025.09.28 @ 20:47:25 End 2025.09.28 @ 21:10:31 Sessions 1 Manual Loads 0 Difficulty Rogue Special Mode None Game No. 47 Rogue 47 Adventurer 0 Explorer 0 Win Type - Total 0 Types 0/0/0/0/0/0/0/0/0/0 Lore% 2 Gallery% 13 Achievement% 9 Wizard Run 0 Options --------- Layout 1 ASCII 0 Keyboard 0 Movement Numpad Keybinds 0 Fullscreen 1 Font 24/Crisp Map View 25x17 Zoom Use 50% Tactical HUD 1 Map Filters NONE Filters NONE Steam 1 RUN: 96675b63-9715-413a-91da-71d876b56494